fUSD/lending_fUSD_20250125
["ID","MTS","AMOUNT","RATE_DAILY","PERIOD"]
[350286987,1737769839241,-501.86671312,0.00016438,2]
[350286988,1737769839250,-516.24723128,0.00016438,2]
[350286989,1737769839260,-511.20494562,0.00016438,2]
[350286990,1737769839269,-630.75984389,0.00016438,2]
[350286991,1737769839279,-505.20334736,0.00016438,2]
[350286992,1737769839288,-505.54572491,0.00016438,2]
[350286993,1737769839297,-507.9785276,0.00016438,2]
[350286994,1737769839307,-521.84071533,0.00016438,2]
[350286995,1737769839317,-503.41226447,0.00016438,2]
[350286996,1737769839327,-504.04924993,0.00016438,2]
[350286997,1737769839337,-331.41263189,0.00016438,2]
[350286998,1737769839346,-508.76642837,0.00016438,2]
[350286999,1737769839356,-503.62101969,0.00016438,2]
[350287000,1737769839366,-505.1750005,0.00016438,2]
[350287001,1737769839376,-467.45590245,0.00016438,2]
[350287002,1737769839386,-513.26692866,0.00016438,2]
[350287003,1737769839395,-506.12137349,0.00016438,2]
[350287004,1737769839409,-514.14610878,0.00016438,2]
[350287005,1737769839419,-505.72593124,0.00016438,2]
[350287006,1737769839428,-501.14323004,0.00016438,2]
[350287007,1737769839437,-580.15670781,0.00016438,2]
[350287008,1737769839447,-506.74955503,0.00016438,2]
[350287009,1737769839457,-504.52000913,0.00016438,2]
[350287010,1737769839466,-517.92789517,0.00016438,2]
[350287011,1737769839475,-518.63509007,0.00016438,2]
[350287012,1737769839485,-512.23687985,0.00016438,2]
[350287013,1737769839494,-504.41810329,0.00016438,2]
[350287014,1737769839504,-164.47781501,0.00016438,2]
[350287015,1737769839513,-501.12426589,0.00016438,2]
[350287016,1737769839523,-509.78973265,0.00016438,2]
[350287017,1737769839532,-504.21547239,0.00016438,2]
[350287018,1737769839542,-508.64941337,0.00016438,2]
[350287019,1737769839551,-506.01714766,0.00016438,2]
[350287020,1737769839560,-503.32187321,0.00016438,2]
[350287021,1737769839569,-518.45188711,0.00016438,2]
[350287022,1737769839579,-510.56103369,0.00016438,2]
[350287023,1737769839588,-242.529983,0.00016438,2]
[350287024,1737769839599,-502.64313334,0.00016438,2]
[350287025,1737769839610,-502.85590499,0.00016438,2]
[350287026,1737769839620,-519.2,0.00016438,2]
[350287027,1737769839630,-511.05595045,0.00016438,2]
[350287028,1737769839639,-508.59762478,0.00016438,2]
[350287029,1737769839649,-863.29,0.00016438,2]
[350287030,1737769839659,-503.18762307,0.00016438,2]
[350287031,1737769839668,-507.17919486,0.00016438,2]
[350287032,1737769839678,-396.34177346,0.00016438,2]
[350287033,1737769839687,-505.03829743,0.00016438,2]
[350287034,1737769839697,-1033.74,0.00016438,2]
[350287035,1737769839707,-694.04,0.00016438,2]
[350287036,1737769839716,-216.11306194,0.00016438,2]
[350287037,1737769839726,-509.29564928,0.00016438,2]
[350287038,1737769839735,-504.51847719,0.00016438,2]
[350287039,1737769839746,-500.0,0.00016438,2]
[350287040,1737769839755,-513.18773137,0.00016438,2]
[350287041,1737769839765,-511.52001808,0.00016438,2]
[350287042,1737769839775,-1210.79,0.00016438,2]
[350287043,1737769839784,-500.0,0.00016438,2]
[350287044,1737769839794,-500.0,0.00016438,2]
[350287045,1737769839804,-500.0,0.00016438,2]
[350287047,1737769839813,-500.0,0.00016438,2]
[350287048,1737769839823,-500.0,0.00016438,2]
[350287049,1737769839835,-507.67498275,0.00016438,2]
[350287050,1737769839844,-262.1635489,0.00016438,2]
[350287051,1737769839859,-256.63378479,0.00016438,2]
[350287052,1737769839869,-510.98782007,0.00016438,2]
[350287053,1737769839878,-514.69664988,0.00016438,2]
[350287054,1737769839888,-500.0,0.00016438,2]
[350287055,1737769839898,-500.0,0.00016438,2]
[350287056,1737769839909,-506.52200233,0.00016438,2]
[350287057,1737769839919,-502.57391,0.00016438,2]
[350287058,1737769839930,-503.02946044,0.00016438,2]
[350287059,1737769839940,-500.0,0.00016438,2]
[350287060,1737769839951,-503.80778048,0.00016438,2]
[350287061,1737769839961,-511.37450333,0.00016438,2]
[350287062,1737769839970,-507.24234717,0.00016438,2]
[350287063,1737769839979,-500.0,0.00016438,2]
[350287064,1737769839989,-279.16829151,0.00016438,2]
[350287066,1737769840003,-265.77789417,0.00016438,2]
[350287067,1737769840012,-1419.56,0.00016438,2]
[350287068,1737769840022,-500.0,0.00016438,2]
[350287069,1737769840031,-502.5926696,0.00016438,2]
[350287070,1737769840040,-500.0,0.00016438,2]
[350287071,1737769840049,-500.0,0.00016438,2]
[350287072,1737769840058,-504.10247034,0.00016438,2]
[350287073,1737769840067,-578.95688256,0.00016438,2]
[350287074,1737769840077,-500.0,0.00016438,2]
[350287075,1737769840086,-500.0,0.00016438,2]
[350287076,1737769840095,-505.17533153,0.00016438,2]
[350287077,1737769840105,-1263.23,0.00016438,2]
[350287078,1737769840114,-502.23498465,0.00016438,2]
[350287079,1737769840124,-200.0,0.00016438,2]
[350287080,1737769840133,-500.0,0.00016438,2]
[350287081,1737769840143,-295.81520884,0.00016438,2]
[350287082,1737769840152,-500.0,0.00016438,2]
[350287083,1737769840162,-500.0,0.00016438,2]
[350287084,1737769840171,-517.34381997,0.00016438,2]
[350287085,1737769840180,-500.0,0.00016438,2]
[350287086,1737769840190,-500.0,0.00016438,2]
[350287087,1737769840199,-511.78468498,0.00016438,2]
[350287088,1737769840208,-500.0,0.00016438,2]
[350287089,1737769840218,-327.31990446,0.00016438,2]
[350287090,1737769840230,-172.68009554,0.00016438,2]
[350287091,1737769840239,-500.0,0.00016438,2]
[350287092,1737769840248,-500.0,0.00016438,2]
[350287093,1737769840258,-500.0,0.00016438,2]
[350287094,1737769840267,-510.1362565,0.00016438,2]
[350287095,1737769840276,-500.0,0.00016438,2]
[350287096,1737769840286,-505.19420187,0.00016438,2]
[350287097,1737769840295,-500.0,0.00016438,2]
[350287098,1737769840304,-500.0,0.00016438,2]
[350287099,1737769840313,-500.0,0.00016438,2]
[350287100,1737769840322,-501.15541772,0.00016438,2]
[350287101,1737769840332,-500.0,0.00016438,2]
[350287102,1737769840340,-503.74632758,0.00016438,2]
[350287103,1737769840349,-500.0,0.00016438,2]
[350287104,1737769840359,-500.0,0.00016438,2]
[350287105,1737769840369,-503.2918187,0.00016438,2]
[350287106,1737769840378,-500.0,0.00016438,2]
[350287107,1737769840387,-515.01860289,0.00016438,2]
[350287108,1737769840396,-438.42921504,0.00016438,2]
[350287109,1737769840406,-500.0,0.00016438,2]
[350287110,1737769840415,-504.33021329,0.00016438,2]
[350287111,1737769840425,-500.0,0.00016438,2]
[350287112,1737769840434,-500.0,0.00016438,2]
[350287113,1737769840443,-500.0,0.00016438,2]
[350287114,1737769840453,-505.74733765,0.00016438,2]
[350287115,1737769840462,-712.33,0.00016438,2]
[350287116,1737769840472,-500.0,0.00016438,2]
[350287117,1737769840487,-512.13473259,0.00016438,2]
[350287118,1737769840497,-500.0,0.00016438,2]
[350287119,1737769840507,-500.0,0.00016438,2]
[350287120,1737769840516,-501.47982645,0.00016438,2]
[350287121,1737769840526,-500.0,0.00016438,2]
[350287122,1737769840535,-500.0,0.00016438,2]
[350287123,1737769840544,-500.0,0.00016438,2]
[350287124,1737769840554,-500.0,0.00016438,2]
[350287125,1737769840563,-500.0,0.00016438,2]
[350287127,1737769840572,-503.70024271,0.00016438,2]
[350287129,1737769840581,-500.0,0.00016438,2]
[350287131,1737769840591,-500.0,0.00016438,2]
[350287133,1737769840600,-504.81830879,0.00016438,2]
[350287134,1737769840610,-500.0,0.00016438,2]
[350287135,1737769840620,-500.0,0.00016438,2]
[350287136,1737769840629,-501.84584603,0.00016438,2]
[350287137,1737769840639,-506.3364256,0.00016438,2]
[350287138,1737769840648,-500.0,0.00016438,2]
[350287139,1737769840657,-530.78771408,0.00016438,2]
[350287140,1737769840667,-500.0,0.00016438,2]
[350287141,1737769840676,-509.73793653,0.00016438,2]
[350287142,1737769840686,-500.0,0.00016438,2]
[350287143,1737769840696,-564.73068666,0.00016438,2]
[350287144,1737769840709,-500.0,0.00016438,2]
[350287145,1737769840719,-500.0,0.00016438,2]
[350287146,1737769840728,-508.16652179,0.00016438,2]
[350287147,1737769840738,-515.6438721,0.00016438,2]
[350287148,1737769840747,-500.0,0.00016438,2]
[350287149,1737769840757,-500.0,0.00016438,2]
[350287150,1737769840766,-505.38249871,0.00016438,2]
[350287151,1737769840775,-500.0,0.00016438,2]
[350287152,1737769840784,-504.22332037,0.00016438,2]
[350287153,1737769840793,-503.63831733,0.00016438,2]
[350287154,1737769840803,-500.0,0.00016438,2]
[350287155,1737769840812,-510.41650089,0.00016438,2]
[350287156,1737769840822,-504.64332181,0.00016438,2]
[350287157,1737769840831,-502.81994424,0.00016438,2]
[350287158,1737769840840,-500.0,0.00016438,2]
[350287159,1737769840850,-507.97514586,0.00016438,2]
[350287160,1737769840859,-554.29666733,0.00016438,2]
[350287161,1737769840868,-500.0,0.00016438,2]
[350287162,1737769840879,-509.16578245,0.00016438,2]
[350287163,1737769840888,-500.0,0.00016438,2]
[350287164,1737769840898,-519.24311767,0.00016438,2]
[350287165,1737769840907,-502.88110776,0.00016438,2]
[350287166,1737769840918,-515.55138374,0.00016438,2]
[350287167,1737769840931,-373.72924864,0.00016438,2]
[350287168,1737769840942,-511.5639646,0.00016438,2]
[350287169,1737769840952,-516.8219405,0.00016438,2]
[350287170,1737769840962,-500.0,0.00016438,2]
[350287171,1737769840971,-500.0,0.00016438,2]
[350287172,1737769840990,-500.0,0.00016438,2]
[350287173,1737769841002,-500.0,0.00016438,2]
[350287174,1737769841012,-301.88079023,0.00016438,2]
[350287175,1737769841022,-500.0,0.00016438,2]
[350287176,1737769841031,-500.0,0.00016438,2]
[350287177,1737769841041,-509.27739208,0.00016438,2]
[350287178,1737769841051,-336.9691347,0.00016438,2]
[350287179,1737769841060,-501.27290429,0.00016438,2]
[350287180,1737769841069,-649.85,0.00016438,2]
[350287181,1737769841079,-501.47345857,0.00016438,2]
[350287182,1737769841089,-505.30339742,0.00016438,2]
[350287183,1737769841099,-508.86821453,0.00016438,2]
[350287184,1737769841108,-514.51995924,0.00016438,2]
[350287185,1737769841118,-504.25821433,0.00016438,2]
[350287186,1737769841127,-305.60858581,0.00016438,2]
[350287187,1737769841137,-501.69989726,0.00016438,2]
[350287188,1737769841146,-588.51,0.00016438,2]
[350287189,1737769841156,-504.56454421,0.00016438,2]
[350287190,1737769841165,-502.39515638,0.00016438,2]
[350287191,1737769841175,-500.0,0.00016438,2]
[350287192,1737769841185,-553.16603567,0.00016438,2]
[350287193,1737769841194,-503.15408421,0.00016438,2]
[350287194,1737769841204,-944.84,0.00016438,2]
[350287195,1737769841214,-526.598357,0.00016438,2]
[350287196,1737769841224,-506.91222042,0.00016438,2]
[350287197,1737769841233,-511.38,0.00016438,2]
[350287198,1737769841243,-500.0,0.00016438,2]
[350287199,1737769841253,-500.0,0.00016438,2]
[350287200,1737769841275,-500.0,0.00016438,2]
[350287201,1737769841285,-500.0,0.00016438,2]
[350287202,1737769841295,-500.0,0.00016438,2]
[350287203,1737769841305,-500.0,0.00016438,2]
[350287204,1737769841315,-956.78,0.00016438,2]
[350287205,1737769841324,-533.74676829,0.00016438,2]
[350287206,1737769841334,-500.0,0.00016438,2]
[350287207,1737769841343,-549.15917574,0.00016438,2]
[350287208,1737769841352,-512.57942658,0.00016438,2]
[350287209,1737769841362,-500.0,0.00016438,2]
[350287210,1737769841371,-500.0,0.00016438,2]
[350287211,1737769841381,-810.83,0.00016438,2]
[350287212,1737769841390,-1870.13,0.00016438,2]
[350287213,1737769841405,-21501.56909894,0.00016475,2]
[350287214,1737769841415,-514.19833753,0.00016575,2]
[350287215,1737769841424,-500.0,0.00016575,2]
[350287216,1737769841433,-508.18623139,0.00016575,2]
[350287217,1737769841442,-516.35449352,0.00016575,2]
[350287218,1737769841452,-523.32115828,0.00016575,2]
[350287219,1737769841461,-518.54231292,0.00016575,2]
[350287220,1737769841471,-499.8802275,0.00016575,2]
[350287221,1737769841480,-500.0,0.00016575,2]
[350287222,1737769841490,-500.0,0.00016575,2]
[350287223,1737769841499,-517.65938348,0.00016575,2]
[350287224,1737769841509,-520.35294928,0.00016575,2]
[350287225,1737769841519,-516.59201871,0.00016575,2]
[350287226,1737769841528,-518.82599111,0.00016575,2]
[350287227,1737769841538,-500.0,0.00016575,2]
[350287228,1737769841547,-500.0,0.00016575,2]
[350287229,1737769841556,-566.08204582,0.00016575,2]
[350287230,1737769841565,-531.35556256,0.00016575,2]
[350287231,1737769841575,-523.99304462,0.00016575,2]
[350287232,1737769841584,-520.69353191,0.00016575,2]
[350287233,1737769841593,-500.0,0.00016575,2]
[350287234,1737769841604,-519.81700128,0.00016575,2]
[350287235,1737769841613,-510.44039671,0.00016575,2]
[350287236,1737769841623,-520.83527913,0.00016575,2]
[350287237,1737769841632,-500.0,0.00016575,2]
[350287238,1737769841641,-500.0,0.00016575,2]
[350287239,1737769841650,-583.62536799,0.00016575,2]
[350287240,1737769841661,-500.0,0.00016575,2]
[350287241,1737769841670,-522.21387325,0.00016575,2]
[350287242,1737769841679,-523.31060208,0.00016575,2]
[350287243,1737769841688,-500.0,0.00016575,2]
[350287244,1737769841699,-500.0,0.00016575,2]
[350287245,1737769841708,-597.01225483,0.00016575,2]
[350287246,1737769841718,-570.38533335,0.00016575,2]
[350287247,1737769841727,-263.93680975,0.00016575,2]
[350287248,1737769841736,-538.53678131,0.00016575,2]
[350287249,1737769841745,-525.59411641,0.00016575,2]
[350287250,1737769841755,-270.69639282,0.00016575,2]
[350287251,1737769841763,-541.34562825,0.00016575,2]
[350287252,1737769841773,-500.0,0.00016575,2]
[350287253,1737769841782,-515.74105913,0.00016575,2]
[350287254,1737769841791,-500.0,0.00016575,2]
[350287255,1737769841800,-591.10858332,0.00016575,2]
[350287256,1737769841810,-517.13542134,0.00016575,2]
[350287257,1737769841819,-519.2,0.00016575,2]
[350287258,1737769841828,-863.29,0.00016575,2]
[350287259,1737769841837,-1033.74,0.00016575,2]
[350287260,1737769841846,-694.04,0.00016575,2]
[350287261,1737769841856,-510.39115237,0.00016575,2]
[350287262,1737769841866,-1210.79,0.00016575,2]
[350287263,1737769841876,-501.6100964,0.00016575,2]
[350287264,1737769841885,-515.74667127,0.00016575,2]
[350287265,1737769841895,-507.95624442,0.00016575,2]
[350287266,1737769841904,-508.1284825,0.00016575,2]
[350287267,1737769841914,-507.58649221,0.00016575,2]
[350287268,1737769841925,-566.2532629,0.00016575,2]
[350287269,1737769841935,-518.18830095,0.00016575,2]
[350287270,1737769841944,-508.29326602,0.00016575,2]
[350287271,1737769841954,-519.47510725,0.00016575,2]
[350287272,1737769841966,-1419.56,0.00016575,2]
[350287273,1737769841975,-511.42500229,0.00016575,2]
[350287274,1737769841985,-500.0,0.00016575,2]
[350287275,1737769841994,-504.00542504,0.00016575,2]
[350287276,1737769842005,-505.15779122,0.00016575,2]
[350287277,1737769842014,-502.53281396,0.00016575,2]
[350287278,1737769842024,-1263.23,0.00016575,2]
[350287279,1737769842033,-201.44481367,0.00016575,2]
[350287280,1737769842043,-503.69646771,0.00016575,2]
[350287281,1737769842058,-507.11757272,0.00016575,2]
[350287282,1737769842072,-505.40465074,0.00016575,2]
[350287283,1737769842081,-513.58566734,0.00016575,2]
[350287284,1737769842090,-503.81742409,0.00016575,2]
[350287285,1737769842099,-500.0,0.00016575,2]
[350287286,1737769842109,-513.21238052,0.00016575,2]
[350287287,1737769842120,-517.71507666,0.00016575,2]
[350287288,1737769842129,-504.42379973,0.00016575,2]
[350287289,1737769842139,-507.92369278,0.00016575,2]
[350287290,1737769842149,-505.29130415,0.00016575,2]
[350287291,1737769842159,-508.22427595,0.00016575,2]
[350287292,1737769842168,-515.51647973,0.00016575,2]
[350287293,1737769842178,-508.45858656,0.00016575,2]
[350287294,1737769842187,-503.36093848,0.00016575,2]
[350287295,1737769842197,-500.0,0.00016575,2]
[350287296,1737769842207,-510.08115185,0.00016575,2]
[350287297,1737769842217,-510.43656603,0.00016575,2]
[350287298,1737769842227,-502.63357929,0.00016575,2]
[350287299,1737769842236,-500.0,0.00016575,2]
[350287300,1737769842245,-622.57642588,0.00016575,2]
[350287301,1737769842255,-712.33,0.00016575,2]
[350287302,1737769842264,-510.61519058,0.00016575,2]
[350287303,1737769842274,-500.0,0.00016575,2]
[350287304,1737769842283,-566.74269286,0.00016575,2]
[350287305,1737769842293,-502.32428476,0.00016575,2]
[350287306,1737769842302,-501.12619568,0.00016575,2]
[350287307,1737769842312,-500.0,0.00016575,2]
[350287308,1737769842322,-484.61576716,0.00016575,2]
[350287309,1737769842331,-500.0,0.00016575,2]
[350287310,1737769842341,-508.27841233,0.00016575,2]
[350287311,1737769842350,-508.83081664,0.00016575,2]
[350287312,1737769842359,-500.0,0.00016575,2]
[350287313,1737769842368,-152.6111455,0.00016575,2]
[350287314,1737769842379,-511.05826176,0.00016575,2]
[350287315,1737769842388,-308.56809929,0.00016575,2]
[350287316,1737769842399,-362.15126184,0.00016575,2]
[350287317,1737769842408,-507.28814852,0.00016575,2]
[350287318,1737769842419,-506.62939306,0.00016575,2]
[350287319,1737769842428,-500.0,0.00016575,2]
[350287320,1737769842438,-508.9755666,0.00016575,2]
[350287321,1737769842449,-618.0796587,0.00016575,2]
[350287322,1737769842459,-571.52056297,0.00016575,2]
[350287323,1737769842469,-500.0,0.00016575,2]
[350287324,1737769842479,-165.27779606,0.00016575,2]
[350287325,1737769842488,-500.0,0.00016575,2]
[350287326,1737769842498,-611.52407351,0.00016575,2]
[350287327,1737769842508,-158.35901064,0.00016575,2]
[350287328,1737769842517,-234.95271393,0.00016575,2]
[350287329,1737769842528,-500.0,0.00016575,2]
[350287330,1737769842538,-649.85,0.00016575,2]
[350287331,1737769842547,-588.51,0.00016575,2]
[350287332,1737769842708,-944.84,0.00016575,2]
[350287333,1737769842718,-511.38,0.00016575,2]
[350287334,1737769842727,-500.0,0.00016575,2]
[350287335,1737769842737,-500.0,0.00016575,2]
[350287336,1737769842746,-500.0,0.00016575,2]
[350287337,1737769842755,-642.24,0.00016575,2]
[350287338,1737769842764,-500.0,0.00016575,2]
[350287339,1737769842774,-956.78,0.00016575,2]
[350287340,1737769842783,-500.0,0.00016575,2]
[350287341,1737769842792,-500.0,0.00016575,2]
[350287342,1737769842802,-810.83,0.00016575,2]
[350287343,1737769842811,-587.0,0.00016657,2]
[350287344,1737769842820,-1058.0,0.0001671,2]
[350287345,1737769842830,-522.59216125,0.00016711,2]
[350287346,1737769842839,-524.26734721,0.00016711,2]
[350287347,1737769842848,-500.0,0.00016711,2]
[350287348,1737769842858,-519.09848906,0.00016711,2]
[350287349,1737769842867,-500.0,0.00016711,2]
[350287350,1737769842876,-500.0,0.00016711,2]
[350287351,1737769842886,-500.0,0.00016711,2]
[350287352,1737769842896,-500.0,0.00016711,2]
[350287354,1737769842905,-500.0,0.00016711,2]
[350287356,1737769842916,-579.21070413,0.00016711,2]
[350287358,1737769842927,-500.0,0.00016711,2]
[350287359,1737769842936,-500.0,0.00016711,2]
[350287360,1737769842946,-512.58146373,0.00016711,2]
[350287361,1737769842956,-500.0,0.00016711,2]
[350287362,1737769842966,-500.0,0.00016711,2]
[350287364,1737769842975,-500.0,0.00016711,2]
[350287365,1737769842984,-584.4046674,0.00016711,2]
[350287366,1737769842993,-500.0,0.00016711,2]
[350287367,1737769843003,-500.0,0.00016711,2]
[350287368,1737769843012,-516.07300515,0.00016711,2]
[350287369,1737769843021,-500.0,0.00016711,2]
[350287370,1737769843030,-516.19150037,0.00016711,2]
[350287371,1737769843040,-515.4752666,0.00016711,2]
[350287372,1737769843049,-500.0,0.00016711,2]
[350287373,1737769843058,-500.0,0.00016711,2]
[350287374,1737769843067,-515.02835022,0.00016711,2]
[350287375,1737769843076,-500.0,0.00016711,2]
[350287376,1737769843086,-500.0,0.00016711,2]
[350287377,1737769843095,-500.0,0.00016711,2]
[350287378,1737769843104,-500.0,0.00016711,2]
[350287379,1737769843113,-500.0,0.00016711,2]
[350287380,1737769843123,-500.0,0.00016711,2]
[350287381,1737769843131,-500.0,0.00016711,2]
[350287382,1737769843141,-515.62847643,0.00016711,2]
[350287383,1737769843150,-500.0,0.00016711,2]
[350287384,1737769843160,-500.0,0.00016711,2]
[350287385,1737769843170,-500.0,0.00016711,2]
[350287386,1737769843179,-500.0,0.00016711,2]
[350287387,1737769843189,-500.0,0.00016711,2]
[350287388,1737769843198,-504.26694784,0.00016711,2]
[350287389,1737769843207,-500.0,0.00016711,2]
[350287390,1737769843216,-500.0,0.00016711,2]
[350287391,1737769843226,-518.88836799,0.00016711,2]
[350287392,1737769843235,-506.21225707,0.00016711,2]
[350287393,1737769843244,-500.0,0.00016711,2]
[350287394,1737769843254,-500.0,0.00016711,2]
[350287395,1737769843264,-500.0,0.00016711,2]
[350287396,1737769843273,-500.0,0.00016711,2]
[350287397,1737769843284,-536.36624997,0.00016711,2]
[350287398,1737769843294,-515.38105194,0.00016711,2]
[350287399,1737769843303,-500.0,0.00016711,2]
[350287400,1737769843312,-502.35635231,0.00016711,2]
[350287401,1737769843322,-500.0,0.00016711,2]
[350287402,1737769843331,-500.0,0.00016711,2]
[350287403,1737769843340,-500.0,0.00016711,2]
[350287404,1737769843350,-500.0,0.00016711,2]
[350287405,1737769843359,-500.0,0.00016711,2]
[350287406,1737769843369,-509.6408177,0.00016711,2]
[350287407,1737769843378,-503.68982087,0.00016711,2]
[350287408,1737769843387,-500.0,0.00016711,2]
[350287409,1737769843397,-500.0,0.00016711,2]
[350287410,1737769843411,-500.0,0.00016711,2]
[350287411,1737769843421,-514.48785853,0.00016711,2]
[350287412,1737769843430,-500.0,0.00016711,2]
[350287413,1737769843439,-520.38627697,0.00016711,2]
[350287414,1737769843450,-726.04,0.00016711,2]
[350287415,1737769843459,-500.0,0.00016711,2]
[350287416,1737769843468,-786.33,0.00016711,2]
[350287417,1737769843479,-500.0,0.00016711,2]
[350287418,1737769843493,-500.0,0.00016711,2]
[350287419,1737769843503,-514.80095941,0.00016711,2]
[350287420,1737769843513,-500.0,0.00016711,2]
[350287421,1737769843523,-500.0,0.00016711,2]
[350287422,1737769843534,-500.0,0.00016711,2]
[350287423,1737769843545,-500.0,0.00016711,2]
[350287424,1737769843555,-500.0,0.00016711,2]
[350287425,1737769843565,-538.16844992,0.00016711,2]
[350287427,1737769843575,-500.0,0.00016711,2]
[350287429,1737769843586,-442.85061886,0.00016711,2]
[350287431,1737769843596,-500.0,0.00016711,2]
[350287433,1737769843605,-1141.35,0.00016711,2]
[350287435,1737769843614,-500.0,0.00016711,2]
[350287437,1737769843623,-500.0,0.00016711,2]
[350287439,1737769843632,-537.96034591,0.00016711,2]
[350287441,1737769843641,-500.0,0.00016711,2]
[350287443,1737769843662,-500.0,0.00016711,2]
[350287445,1737769843676,-500.0,0.00016711,2]
[350287447,1737769843685,-500.0,0.00016711,2]
[350287449,1737769843695,-500.0,0.00016711,2]
[350287450,1737769843705,-500.0,0.00016711,2]
[350287452,1737769843715,-500.0,0.00016711,2]
[350287454,1737769843724,-500.0,0.00016711,2]
[350287456,1737769843733,-500.0,0.00016711,2]
[350287458,1737769843743,-500.0,0.00016711,2]
[350287460,1737769843751,-500.0,0.00016711,2]
[350287462,1737769843761,-757.05,0.00016711,2]
[350287464,1737769843770,-500.0,0.00016711,2]
[350287466,1737769843779,-1435.72,0.00016711,2]
[350287468,1737769843788,-632.77,0.00016711,2]
[350287471,1737769843797,-500.0,0.00016711,2]
[350287472,1737769843806,-500.0,0.00016711,2]
[350287473,1737769843815,-500.0,0.00016711,2]
[350287474,1737769843824,-500.0,0.00016711,2]
[350287475,1737769843834,-527.81553068,0.00016711,2]
[350287476,1737769843843,-558.5,0.00016711,2]
[350287477,1737769843852,-500.0,0.00016711,2]
[350287478,1737769843861,-503.99771014,0.00016711,2]
[350287479,1737769843871,-500.0,0.00016711,2]
[350287480,1737769843882,-500.0,0.00016711,2]
[350287481,1737769843890,-500.0,0.00016711,2]
[350287482,1737769843899,-500.0,0.00016711,2]
[350287483,1737769843908,-500.0,0.00016711,2]
[350287484,1737769843918,-500.0,0.00016711,2]
[350287485,1737769843929,-729.14,0.00016711,2]
[350287486,1737769843938,-518.92446398,0.00016711,2]
[350287488,1737769843948,-500.0,0.00016711,2]
[350287490,1737769843958,-500.0,0.00016711,2]
[350287492,1737769843968,-500.0,0.00016711,2]
[350287494,1737769843977,-500.0,0.00016711,2]
[350287496,1737769843986,-500.0,0.00016711,2]
[350287498,1737769843995,-500.0,0.00016711,2]
[350287500,1737769844004,-500.0,0.00016711,2]
[350287502,1737769844014,-527.93651877,0.00016711,2]
[350287503,1737769844024,-647.26,0.00016711,2]
[350287504,1737769844033,-500.0,0.00016711,2]
[350287505,1737769844042,-500.0,0.00016711,2]
[350287506,1737769844052,-500.0,0.00016711,2]
[350287507,1737769844061,-521.25339193,0.00016711,2]
[350287508,1737769844070,-518.46730649,0.00016711,2]
[350287509,1737769844079,-507.56965861,0.00016711,2]
[350287510,1737769844088,-1037.96453693,0.00016711,2]
[350287511,1737769844097,-500.0,0.00016711,2]
[350287512,1737769844107,-500.0,0.00016711,2]
[350287513,1737769844116,-500.0,0.00016711,2]
[350287514,1737769844125,-500.0,0.00016711,2]
[350287515,1737769844135,-520.17423376,0.00016711,2]
[350287516,1737769844144,-500.0,0.00016711,2]
[350287517,1737769844154,-515.62557735,0.00016711,2]
[350287518,1737769844163,-714.31,0.00016711,2]
[350287519,1737769844173,-500.0,0.00016711,2]
[350287520,1737769844182,-500.0,0.00016711,2]
[350287521,1737769844191,-501.56469815,0.00016711,2]
[350287522,1737769844201,-520.56620696,0.00016711,2]
[350287523,1737769844211,-696.03,0.00016711,2]
[350287524,1737769844220,-522.54216622,0.00016711,2]
[350287525,1737769844229,-514.08686604,0.00016711,2]
[350287526,1737769844239,-500.0,0.00016711,2]
[350287527,1737769844248,-500.0,0.00016711,2]